bitfinex/quotes_ETHUSD_20241215
["timestamp","ask_amount","ask_price","bid_price","bid_amount"]
[1734256583153,2.58896,3862.6,3862.3,0.89732029]
[1734256583453,2.58896,3862.6,3862.1,1.08753591]
[1734256583654,2.58896,3862.6,3862.2,2.24324156]
[1734256583854,2.58896,3862.6,3862.3,2.24324156]
[1734256584060,2.58896,3862.6,3862.1,1.08753591]
[1734256584258,2.58896,3862.6,3862.2,2.2432451]
[1734256584442,2.58896,3862.6,3862.3,0.89729804]
[1734256584758,2.58896,3862.6,3862.1,1.08753591]
[1734256584952,2.58896,3862.6,3862.2,2.24319955]
[1734256585159,2.58896,3862.6,3862.3,0.89727982]
[1734256585355,2.58896,3862.6,3862.1,1.08753591]
[1734256585556,2.58896,3862.6,3862.2,2.24320347]
[1734256585747,2.58896,3862.6,3862.3,0.89728139]
[1734256585948,2.58896,3862.6,3862.1,1.08753591]
[1734256586272,2.58896,3862.6,3862.2,2.24316103]
[1734256586457,2.58896,3862.6,3862.3,0.89726441]
[1734256586765,2.58896,3862.6,3862.0,1.91133591]
[1734256587061,2.58896,3862.6,3862.1,2.2431245]
[1734256587222,2.58896,3862.6,3862.2,2.2431245]
[1734256587423,2.58896,3862.6,3862.3,0.8972498]
[1734256587629,2.58896,3862.6,3862.0,1.91133591]
[1734256587830,2.58896,3862.6,3862.1,2.24307023]
[1734256588043,2.58896,3862.6,3862.2,2.24307023]
[1734256588266,2.58896,3862.6,3862.3,0.95436333]
[1734256588463,2.58896,3862.6,3862.3,0.05713524]
[1734256588763,2.58896,3862.6,3862.0,1.91133591]
[1734256588966,2.58896,3862.6,3862.1,2.24302588]
[1734256589171,2.58896,3862.6,3862.2,2.24300142]
[1734256589473,0.6694,3862.5,3862.3,0.95433581]
[1734256589638,3.25841,3862.5,3862.3,0.05713524]
[1734256589971,3.25841,3862.5,3862.0,1.91133591]
[1734256590191,3.25841,3862.5,3862.4,0.05709386]
[1734256590395,3.25841,3862.5,3862.4,0.05707952]
[1734256590762,3.25841,3862.5,3862.4,0.05716253]
[1734256590969,3.25841,3862.5,3862.0,1.91133591]
[1734256591159,3.25841,3862.5,3862.1,2.30018984]
[1734256591356,3.25841,3862.5,3862.2,2.24294988]
[1734256591561,3.25841,3862.5,3862.3,0.05716816]
[1734256592395,3.25841,3862.5,3862.0,1.91133591]
[1734256592601,3.25841,3862.5,3862.1,2.24284645]
[1734256592751,3.25841,3862.5,3862.2,2.24284645]
[1734256593089,3.25841,3862.5,3862.2,0.05717378]
[1734256593491,3.25841,3862.5,3862.0,1.91133591]
[1734256593711,3.25841,3862.5,3862.3,0.05715593]
[1734256593992,3.25841,3862.5,3862.0,1.91133591]
[1734256594156,3.25841,3862.5,3862.4,0.05712609]
[1734256594358,3.25841,3862.5,3862.0,1.91133591]
[1734256594559,3.25841,3862.5,3862.1,2.30004635]
[1734256594856,3.25841,3862.5,3862.2,0.89713643]
[1734256595058,3.25841,3862.5,3862.3,0.05713406]
[1734256595485,3.25841,3862.5,3862.0,1.91133591]
[1734256595686,3.25841,3862.5,3862.4,0.05698897]
[1734256595886,3.25841,3862.5,3862.0,1.91133591]
[1734256596092,3.25841,3862.5,3862.4,0.05698897]
[1734256596279,3.25841,3862.5,3862.0,1.91133591]
[1734256596480,2.58901,3862.5,3862.4,0.05698897]
[1734256596697,2.58901,3862.5,3862.0,1.91133591]
[1734256596896,3.25826,3862.7,3862.4,0.05698897]
[1734256597106,2.58886,3862.7,3862.0,1.91133591]
[1734256597309,0.1606983,3863.0,3862.5,0.05695913]
[1734256597463,2.58875,3862.9,3862.1,2.13134274]
[1734256597699,2.58875,3862.9,3862.6,0.05692929]
[1734256597937,2.58875,3862.9,3862.1,2.13134274]
[1734256598113,2.58875,3862.9,3862.7,0.05676496]
[1734256598313,2.58875,3862.9,3862.1,2.13134274]
[1734256598646,2.58875,3862.9,3862.2,2.24269188]
[1734256598832,2.58875,3862.9,3862.3,2.2995762]
[1734256599033,2.58875,3862.9,3862.4,0.89707675]
[1734256599237,2.58875,3862.9,3862.5,0.05682463]
[1734256599750,2.58875,3862.9,3862.2,1.08753591]
[1734256599916,2.58875,3862.9,3862.6,0.05679479]
[1734256600121,2.58875,3862.9,3862.2,1.08753591]
[1734256600332,2.58875,3862.9,3862.7,0.05676496]
[1734256600639,2.58875,3862.9,3862.8,0.05673512]
[1734256601008,2.58875,3862.9,3862.3,0.7874]
[1734256601208,2.58875,3862.9,3862.4,2.30007329]
[1734256601408,2.58875,3862.9,3862.4,0.05685447]
[1734256601612,2.58875,3862.9,3862.5,0.89739417]
[1734256601814,2.58875,3862.9,3862.6,0.05673271]
[1734256602014,2.58875,3862.9,3862.3,1.87493591]
[1734256602211,2.58875,3862.9,3862.4,2.30022965]
[1734256602433,2.58875,3862.9,3862.5,2.24349898]
[1734256602637,2.58875,3862.9,3862.6,0.95407513]
[1734256602836,2.58875,3862.9,3862.6,0.05667092]
[1734256603041,2.58875,3862.9,3862.3,1.87493591]
[1734256603237,2.58875,3862.9,3862.4,2.300451]
[1734256603452,2.58875,3862.9,3862.4,0.05671958]
[1734256605672,2.58875,3862.9,3862.5,0.89783807]
[1734256605834,2.58875,3862.9,3862.4,0.05671958]
[1734256606015,2.58875,3862.9,3862.5,0.89783848]
[1734256606216,2.58875,3862.9,3862.6,0.05672344]
[1734256606525,2.58875,3862.9,3862.0,1.08753591]
[1734256606526,2.58922,3862.2,3862.0,1.08753591]
[1734256606724,2.58899,3862.5,3861.7,1.08753591]
[1734256606936,2.58899,3862.5,3861.4,2.16646052]
[1734256606937,2.97894299,3862.4,3861.8,2.24497528]
[1734256607115,2.58927,3862.1,3861.6,1.08753591]
[1734256607485,2.58927,3862.1,3861.7,2.24464607]
[1734256607619,2.58927,3862.1,3861.8,2.24464607]
[1734256607819,2.58927,3862.1,3861.9,0.89785843]
[1734256608015,2.58927,3862.1,3861.6,1.08753591]
[1734256608348,2.58927,3862.1,3861.7,2.2450472]
[1734256608530,2.58927,3862.1,3861.6,1.08753591]
[1734256608531,2.58927,3862.1,3861.8,2.2450472]
[1734256608735,2.58927,3862.1,3861.9,0.89801888]
[1734256608933,2.58927,3862.1,3861.6,1.08753591]
[1734256609134,2.58927,3862.1,3861.7,2.24511423]
[1734256609353,2.58927,3862.1,3861.8,2.24511423]
[1734256609525,3.25848,3862.4,3861.9,0.89804569]
[1734256609720,3.25848,3862.4,3862.0,0.89800171]
[1734256609923,3.25848,3862.4,3861.7,1.08753591]
[1734256610126,3.25848,3862.4,3861.8,2.24500535]
[1734256610326,3.25848,3862.4,3861.9,2.24500535]
[1734256610548,3.25848,3862.4,3862.0,0.89790867]
[1734256610760,3.25848,3862.4,3861.7,1.87493591]
[1734256611020,3.25848,3862.4,3861.8,2.24477233]
[1734256611021,3.78453959,3862.4,3861.8,2.24477233]
[1734256611321,3.78453959,3862.4,3861.9,2.24477233]
[1734256611543,3.78453959,3862.4,3861.7,1.87493591]
[1734256611734,3.78453959,3862.4,3861.8,2.24457495]
[1734256611934,3.78453959,3862.4,3861.9,2.24457495]
[1734256612150,3.78453959,3862.4,3861.7,1.87493591]
[1734256612354,3.78453959,3862.4,3861.8,2.24439663]
[1734256612558,3.78453959,3862.4,3861.9,0.89775865]
[1734256612734,3.78453959,3862.4,3861.7,1.87493591]
[1734256613056,3.78453959,3862.4,3861.8,2.2443989]
[1734256613057,3.25848,3862.4,3861.8,2.2443989]
[1734256613258,3.67309843,3862.7,3861.9,2.2443989]
[1734256613474,2.58892,3862.7,3862.0,2.2443989]
[1734256613624,2.58892,3862.7,3861.9,1.08753591]
[1734256613625,2.58892,3862.7,3862.1,0.89775956]
[1734256613816,2.58892,3862.7,3861.9,1.08753591]
[1734256614021,2.58892,3862.7,3862.0,2.24409303]
[1734256614278,2.58892,3862.7,3862.1,0.89763721]
[1734256614479,2.58892,3862.7,3861.9,1.08753591]
[1734256614633,2.58892,3862.7,3862.0,2.24408622]
[1734256614828,3.09473259,3862.7,3862.1,0.89763449]
[1734256615036,3.09473259,3862.7,3861.9,1.08753591]
[1734256615257,3.09473259,3862.7,3862.0,2.24404698]
[1734256615466,3.09473259,3862.7,3862.1,0.89761879]
[1734256615647,2.58892,3862.6,3861.8,1.08753591]
[1734256615851,2.58892,3862.6,3861.9,2.24405825]
[1734256616051,2.58892,3862.6,3862.0,2.24405825]
[1734256616242,2.58892,3862.6,3862.1,0.8976233]
[1734256616460,2.58892,3862.6,3861.8,1.08753591]
[1734256616662,2.58892,3862.6,3861.9,2.24401537]
[1734256616857,2.58892,3862.6,3862.0,2.24401537]
[1734256617073,3.67297843,3862.8,3862.1,0.89760615]
[1734256617387,3.67297843,3862.8,3861.9,1.08753591]
[1734256617606,0.6694,3862.9,3861.7,3.4625107]
[1734256617607,0.6694,3862.9,3862.1,4.79480683]
[1734256617889,1.77330464,3863.0,3862.2,2.24393045]
[1734256617890,3.27779621,3863.0,3862.2,2.24393045]
[1734256618183,3.27779621,3863.0,3862.3,2.24393045]
[1734256618361,3.27779621,3863.0,3862.4,2.24393045]
[1734256618555,3.27779621,3863.0,3862.3,0.05528129]
[1734256618756,3.27779621,3863.0,3862.5,0.05521127]
[1734256618988,3.27779621,3863.0,3862.4,0.05510672]
[1734256619289,0.6694,3862.6,3862.5,0.05507688]
[1734256619472,0.6694,3862.6,3862.0,1.08753591]
[1734256619677,0.6694,3862.6,3862.1,2.29910522]
[1734256619870,0.6694,3862.6,3862.2,0.89756152]
[1734256620071,0.6694,3862.6,3862.3,0.05517274]
[1734256620886,0.6694,3862.6,3862.4,0.0551429]
[1734256621100,0.6694,3862.6,3862.0,1.08753591]
[1734256621304,0.6694,3862.6,3862.5,0.05511306]
[1734256621450,0.6694,3862.6,3862.0,1.08753591]
[1734256621651,0.6694,3862.6,3862.1,2.29913576]
[1734256621946,0.6694,3862.6,3862.2,2.24390333]
[1734256622186,0.6694,3862.6,3862.1,0.05523243]
[1734256622364,0.6694,3862.6,3862.3,0.05517274]
[1734256622689,0.6694,3862.6,3862.4,0.0551429]
[1734256622887,0.6694,3862.6,3862.0,1.08753591]
[1734256623189,0.6694,3862.6,3862.1,2.29915693]
[1734256623388,0.6694,3862.6,3862.2,0.8975698]
[1734256623586,0.6694,3862.6,3862.1,0.05523243]
[1734256623903,0.6694,3862.6,3862.2,0.89759069]
[1734256624114,0.6694,3862.6,3862.1,0.05523243]
[1734256624265,0.6694,3862.6,3862.3,0.05517274]
[1734256624970,0.6694,3862.6,3862.0,1.08753591]
[1734256625276,0.6694,3862.6,3862.1,2.29924154]
[1734256625479,0.6694,3862.6,3862.2,2.24400911]
[1734256625697,0.6694,3862.6,3862.3,0.05517274]
[1734256626279,0.6694,3862.6,3862.0,1.08753591]
[1734256626601,0.6694,3862.6,3862.1,2.24408503]
[1734256626905,0.6694,3862.6,3862.2,2.24408503]
[1734256627099,0.6694,3862.6,3862.1,0.05523243]
[1734256627405,2.58899,3862.5,3862.2,0.89762228]
[1734256627697,2.58899,3862.5,3862.3,0.05517274]
[1734256627900,2.58899,3862.5,3861.9,1.08753591]
[1734256628104,2.5858713,3862.5,3862.0,2.29937642]
[1734256628303,2.5858713,3862.5,3862.1,0.8976684]
[1734256628503,2.5858713,3862.5,3862.1,0.95289565]
[1734256628707,2.5858713,3862.5,3862.1,0.05522725]
[1734256628916,2.5858713,3862.5,3861.9,1.08753591]
[1734256629071,2.5858713,3862.5,3862.2,0.05519741]
[1734256629275,2.5858713,3862.5,3861.9,1.08753591]
[1734256629513,2.5858713,3862.5,3862.3,0.05516756]
[1734256629791,2.5858713,3862.5,3861.9,1.08753591]
[1734256629991,2.5858713,3862.5,3862.4,0.05513772]
[1734256630193,2.5858713,3862.5,3861.9,1.08753591]
[1734256630515,0.6694,3862.6,3862.0,3.33167024]
[1734256630732,2.58885,3862.8,3862.1,2.24413433]
[1734256630922,2.58885,3862.8,3862.2,3.07493433]
[1734256631072,1.24487673,3863.0,3862.3,0.89765373]
[1734256631274,2.58888,3862.7,3862.3,0.05523476]
[1734256634024,0.86641557,3862.9,3862.3,0.05523476]
[1734256634185,2.58901,3862.5,3862.3,0.05523476]
[1734256634389,2.58901,3862.5,3861.9,1.89323591]
[1734256634685,2.58901,3862.5,3862.0,2.24420852]
[1734256634933,2.58901,3862.5,3862.1,0.89768341]
[1734256635188,1.75357843,3862.8,3862.0,0.05523125]
[1734256635360,2.58918,3862.3,3862.2,0.05517156]
[1734256635652,3.25858,3862.3,3862.1,0.05522208]
[1734256635946,3.25858,3862.3,3862.2,0.05519224]
[1734256636293,3.25858,3862.3,3861.7,1.08753591]
[1734256636595,3.25858,3862.3,3862.2,0.05534732]
[1734256636801,3.25858,3862.3,3861.7,1.08753591]
[1734256637026,3.77580977,3862.3,3862.2,0.05534732]
[1734256637337,3.77580977,3862.3,3861.8,0.05546671]
[1734256637521,3.77580977,3862.3,3862.2,0.05534732]
[1734256637835,1.18662977,3862.3,3861.7,1.08753591]
[1734256638024,2.58921,3862.2,3861.8,2.2441546]
[1734256638213,2.58921,3862.2,3861.9,0.89766184]
[1734256638539,2.58921,3862.2,3861.7,1.08753591]
[1734256638738,2.58921,3862.2,3861.8,2.24410931]
[1734256638943,0.6694,3862.3,3861.9,0.89764372]
[1734256639163,0.6694,3862.3,3862.0,0.89763266]
[1734256639308,0.6694,3862.3,3861.8,1.08753591]
[1734256639508,0.6694,3862.3,3861.9,2.2440389]
[1734256639818,0.6694,3862.3,3862.0,0.89761556]
[1734256640144,0.6694,3862.3,3861.8,1.08753591]
[1734256640319,0.6694,3862.3,3861.9,2.24401243]
[1734256640519,0.6694,3862.3,3862.0,0.89760497]
[1734256640728,0.6694,3862.3,3861.8,1.08753591]
[1734256641039,0.6694,3862.3,3861.9,2.24404315]
[1734256641236,0.6694,3862.3,3862.0,0.89760842]
[1734256641442,0.6694,3862.3,3861.8,1.08753591]
[1734256641754,0.6694,3862.3,3861.9,2.2440375]
[1734256641955,0.6694,3862.3,3862.0,0.897615]
[1734256642160,0.6694,3862.3,3861.8,1.08753591]
[1734256642321,0.6694,3862.3,3861.9,2.24401512]
[1734256642516,2.58907,3862.4,3862.0,0.89760605]
[1734256642756,2.58907,3862.4,3862.1,0.89757369]
[1734256642955,2.58907,3862.4,3861.9,1.08753591]
[1734256643132,2.58907,3862.4,3862.0,2.2439156]
[1734256643318,2.58907,3862.4,3862.1,2.24391788]
[1734256643520,2.58907,3862.4,3861.9,1.08753591]
[1734256643521,0.6694,3862.6,3861.9,1.08753591]
[1734256643744,3.25833,3862.6,3862.0,2.24396868]
[1734256643934,3.25833,3862.6,3862.1,2.24396868]
[1734256644255,3.25833,3862.6,3861.9,1.08753591]
[1734256644570,3.25833,3862.6,3862.0,2.24403758]
[1734256644722,3.25833,3862.6,3862.1,2.24403758]
[1734256644924,3.25833,3862.6,3861.9,1.08753591]
[1734256645229,3.25833,3862.6,3862.0,2.24403455]
[1734256645560,3.25833,3862.6,3861.9,1.08753591]
[1734256645561,3.25833,3862.6,3862.1,2.24403455]
[1734256645755,1.08417843,3862.8,3862.2,0.89764726]
[1734256645955,1.75357843,3862.9,3862.3,0.8976081]
[1734256646162,2.58886,3862.7,3862.1,0.8031]
[1734256646454,2.58886,3862.7,3862.2,2.24409276]
[1734256646662,2.58886,3862.7,3862.1,0.8031]
[1734256646663,2.58886,3862.7,3862.3,0.8976371]
[1734256646826,2.58886,3862.7,3862.1,1.89063591]
[1734256647026,2.58886,3862.7,3862.2,2.24413013]
[1734256647361,2.58886,3862.7,3862.3,0.89765205]
[1734256647519,2.58886,3862.7,3862.0,1.08753591]
[1734256647721,2.58886,3862.7,3862.1,2.24432213]
[1734256647959,2.58893,3862.6,3862.2,0.89772885]
[1734256648224,2.58893,3862.6,3861.9,1.08753591]
[1734256648424,0.6694,3862.5,3862.3,0.05532262]
[1734256648740,0.6694,3862.5,3862.4,0.05526176]
[1734256649122,0.6694,3862.5,3861.9,1.08753591]
[1734256649324,0.6694,3862.5,3862.0,2.30021196]
[1734256649549,0.6694,3862.5,3862.1,2.24477913]
[1734256649737,0.6694,3862.5,3862.0,0.05543283]
[1734256650039,0.6694,3862.5,3862.2,0.05537314]
[1734256650221,0.6694,3862.5,3862.1,0.05540298]
[1734256650421,0.6694,3862.5,3862.3,0.05534329]
[1734256650650,0.84475784,3862.5,3862.2,0.05537314]
[1734256650863,3.25839,3862.5,3862.4,0.05531345]
[1734256651018,2.58906,3862.4,3861.8,1.08753591]
[1734256651224,2.58914,3862.3,3861.9,2.2449492]
[1734256651417,2.58914,3862.3,3862.0,0.89797968]
[1734256651663,2.58914,3862.3,3861.9,0.05549369]
[1734256651866,2.58914,3862.3,3862.1,0.055434]
[1734256652163,2.58914,3862.3,3862.2,0.05540415]
[1734256652535,2.58914,3862.3,3861.8,1.08753591]
[1734256652740,2.58914,3862.3,3861.9,2.30061177]
[1734256653065,2.58914,3862.3,3862.0,0.89804723]
[1734256653363,2.58914,3862.3,3862.0,0.05546385]
[1734256653660,2.58914,3862.3,3861.8,1.08753591]
[1734256653862,3.10638807,3862.3,3861.9,2.2451857]
[1734256654102,3.10638807,3862.3,3862.0,2.2451857]
[1734256654317,3.10638807,3862.3,3862.0,0.05546385]
[1734256654608,3.10638807,3862.3,3861.8,1.08753591]
[1734256654768,3.10638807,3862.3,3862.1,0.055434]
[1734256654966,3.10638807,3862.3,3861.8,1.08753591]
[1734256655193,3.10638807,3862.3,3862.2,0.05540415]
[1734256655367,3.10638807,3862.3,3861.8,1.08753591]
[1734256655566,3.10638807,3862.3,3862.2,0.05540415]
[1734256655805,3.10638807,3862.3,3861.8,1.08753591]
[1734256656106,2.58923,3862.2,3861.9,2.24537158]
[1734256656314,2.58923,3862.2,3862.0,2.30087163]
[1734256656491,2.58923,3862.2,3862.0,0.05550005]
[1734256656814,2.58923,3862.2,3861.8,1.08753591]
[1734256656965,2.58923,3862.2,3862.1,0.0554702]
[1734256657506,2.58923,3862.2,3861.8,1.08753591]
[1734256657664,2.58928,3862.1,3861.9,2.30093641]
[1734256657865,2.58928,3862.1,3862.0,0.89816261]
[1734256658067,2.58928,3862.1,3862.0,0.95371952]
[1734256659284,2.58928,3862.1,3862.0,0.9537409]
[1734256663972,2.58928,3862.1,3862.0,0.95363636]
[1734256666815,3.25868,3862.1,3862.0,0.95363636]
[1734256667315,3.25868,3862.1,3862.0,0.05555691]
[1734256667500,2.58928,3862.1,3861.7,1.08753591]
[1734256667686,2.58928,3862.1,3861.8,2.3011454]
[1734256668012,2.58928,3862.1,3861.9,2.24539232]
[1734256668310,2.58928,3862.1,3862.0,0.05569337]
[1734256668483,2.58928,3862.1,3861.7,1.08753591]
[1734256668683,2.58928,3862.1,3861.8,2.30115219]
[1734256668887,4.18752561,3862.4,3861.9,2.24541122]
[1734256669194,4.18752561,3862.4,3862.0,0.95384575]
[1734256669195,2.58914,3862.3,3862.0,0.95384575]
[1734256669521,2.58926,3862.1,3862.0,0.05568126]
[1734256669687,2.58926,3862.1,3862.0,0.89814538]
[1734256669895,2.58926,3862.1,3862.0,0.95381099]
[1734256671416,2.58917,3862.3,3862.0,3.0689531]
[1734256671715,2.58917,3862.3,3862.1,2.24539388]
[1734256671876,2.58917,3862.3,3862.2,0.05555925]
[1734256672216,2.58917,3862.3,3862.0,0.7679]
[1734256672516,2.58917,3862.3,3862.1,2.30099208]
[1734256672686,2.58917,3862.3,3862.2,0.89816158]
[1734256672895,2.58917,3862.3,3862.2,0.95372083]
[1734256675679,2.58896,3862.6,3862.2,2.30100155]
[1734256675880,2.58896,3862.6,3862.3,0.89816158]
[1734256676193,2.58896,3862.6,3862.3,0.05542084]
[1734256676720,2.58896,3862.6,3862.0,1.85543591]
[1734256676721,2.58896,3862.6,3862.4,0.055391]
[1734256676893,2.58896,3862.6,3862.0,1.85543591]
[1734256677093,2.58896,3862.6,3862.5,0.05536116]
[1734256677435,1.08417843,3862.7,3862.0,1.85543591]
[1734256677436,3.67303843,3862.7,3862.0,1.85543591]
[1734256677730,2.58886,3862.7,3862.1,3.33300932]
[1734256678029,2.58886,3862.7,3862.2,2.24547341]
[1734256678319,2.58886,3862.7,3862.3,0.89818936]
[1734256678481,2.58886,3862.7,3862.4,0.8981884]
[1734256678814,2.58886,3862.7,3862.4,0.055391]
[1734256679241,2.58886,3862.7,3862.1,1.08753591]
[1734256679529,2.58886,3862.7,3862.2,2.24546603]
[1734256679826,2.58886,3862.7,3862.3,2.24546603]
[1734256680031,2.58886,3862.7,3862.4,0.89818641]
[1734256680187,2.58886,3862.7,3862.4,0.055391]
[1734256680386,4.19077448,3862.8,3862.4,0.055391]
[1734256680591,1.22757455,3862.7,3862.1,1.08753591]
[1734256680820,2.589,3862.5,3862.2,0.89824182]
[1734256681019,2.589,3862.5,3862.0,1.85543591]
[1734256681222,2.589,3862.5,3862.1,2.24564582]
[1734256681420,2.589,3862.5,3862.2,0.89825833]
[1734256681633,2.589,3862.5,3862.0,1.85543591]
[1734256681816,2.589,3862.5,3862.1,2.24564061]
[1734256681990,2.589,3862.5,3862.2,0.89825624]
[1734256682192,2.589,3862.5,3862.0,1.85543591]
[1734256682422,2.589,3862.5,3862.1,2.24561185]
[1734256682610,2.589,3862.5,3862.2,2.24561185]
[1734256682801,2.589,3862.5,3862.0,1.85543591]
[1734256683003,2.589,3862.5,3862.1,2.24555785]
[1734256683220,2.589,3862.5,3862.2,2.24555785]
[1734256683431,2.589,3862.5,3862.0,1.85543591]
[1734256683622,2.589,3862.5,3862.1,2.24531077]
[1734256683822,2.589,3862.5,3862.2,0.89812431]
[1734256683992,3.67305843,3862.7,3862.0,1.85543591]
[1734256684192,3.81672623,3862.6,3862.1,2.24521449]
[1734256684397,2.58893,3862.6,3862.2,2.24521449]
[1734256684620,2.58893,3862.6,3862.0,1.85543591]
[1734256684827,2.58893,3862.6,3862.1,2.24523417]
[1734256685022,2.58893,3862.6,3862.2,2.24523417]
[1734256685304,2.58893,3862.6,3862.3,0.89807691]
[1734256685495,2.58893,3862.6,3862.0,1.85543591]
[1734256685701,2.58893,3862.6,3862.1,3.33269593]
[1734256685938,2.58893,3862.6,3862.2,2.24516002]
[1734256686148,2.58893,3862.6,3862.3,0.89806401]
[1734256686438,2.58893,3862.6,3862.1,1.08753591]
[1734256686641,2.58893,3862.6,3862.2,2.24411516]
[1734256686797,2.58893,3862.6,3862.3,0.89764606]
[1734256687124,2.58893,3862.6,3862.1,1.08753591]
[1734256687451,2.58893,3862.6,3862.2,2.24351231]
[1734256687614,2.58893,3862.6,3862.3,0.89740492]
[1734256687814,2.58893,3862.6,3862.1,1.08753591]
[1734256688016,2.58893,3862.6,3862.2,2.24344973]
[1734256688209,2.58893,3862.6,3862.3,0.89737989]
[1734256688412,2.58893,3862.6,3862.1,1.08753591]
[1734256688654,2.58893,3862.6,3862.2,2.24343123]
[1734256688937,2.58893,3862.6,3862.3,0.89740909]
[1734256689240,2.58893,3862.6,3862.0,1.85543591]
[1734256689439,2.58893,3862.6,3862.1,2.24353727]
[1734256689640,2.58893,3862.6,3862.2,0.89741491]
[1734256689939,2.58893,3862.6,3862.0,1.85543591]
[1734256690235,2.58893,3862.6,3862.1,2.24356023]
[1734256690401,2.58893,3862.6,3862.2,0.89742409]
[1734256690608,2.58893,3862.6,3862.0,1.85543591]
[1734256690905,2.58893,3862.6,3862.1,2.24349511]
[1734256691126,2.58893,3862.6,3862.2,0.89739804]
[1734256691326,2.58893,3862.6,3862.0,1.85543591]
[1734256691554,2.58893,3862.6,3862.1,2.24338676]
[1734256691737,2.58893,3862.6,3862.2,0.8973547]
[1734256691935,2.58893,3862.6,3862.0,1.85543591]
[1734256692161,2.58893,3862.6,3862.1,2.2433876]
[1734256692331,2.58893,3862.6,3862.0,1.85543591]
[1734256692332,2.58893,3862.6,3862.2,0.89735504]
[1734256692537,2.58893,3862.6,3862.0,1.85543591]
[1734256692732,2.58893,3862.6,3862.1,2.24361205]
[1734256692939,2.58893,3862.6,3862.2,0.89744482]
[1734256693165,2.58893,3862.6,3862.0,1.85543591]
[1734256693366,2.58893,3862.6,3862.3,0.05527611]
[1734256693661,2.58893,3862.6,3862.0,1.85543591]
[1734256693861,2.58893,3862.6,3862.4,0.05524626]
[1734256694066,2.58893,3862.6,3862.0,1.85543591]
[1734256694246,2.58893,3862.6,3862.5,0.05521642]
[1734256694561,4.46538875,3862.6,3862.5,0.05521126]
[1734256695074,4.46538875,3862.6,3862.0,1.85543591]
[1734256695226,2.58893,3862.6,3862.1,2.24356842]
[1734256695422,2.58893,3862.6,3862.2,0.89742737]
[1734256695647,2.58893,3862.6,3862.1,0.05533063]
[1734256695828,2.58893,3862.6,3862.2,0.89747644]
[1734256696036,2.58893,3862.6,3862.2,0.05530078]
[1734256696375,2.58893,3862.6,3862.0,1.85543591]
[1734256696661,2.58893,3862.6,3862.3,0.05527094]
[1734256696826,2.58893,3862.6,3862.0,1.85543591]
[1734256697027,2.58893,3862.6,3862.4,0.0552411]
[1734256697259,2.58893,3862.6,3862.0,1.85543591]
[1734256697484,2.58893,3862.6,3862.5,0.05521126]
[1734256697811,3.81671847,3862.6,3862.5,0.05521126]
[1734256697932,3.81671847,3862.6,3862.0,1.85543591]
[1734256698288,2.58893,3862.6,3862.5,0.05521126]
[1734256698571,2.58912,3862.4,3861.9,1.08753591]
[1734256698788,2.58912,3862.4,3862.0,2.24385545]
[1734256698967,2.58912,3862.4,3862.1,0.89754218]
[1734256699165,2.58912,3862.4,3861.8,1.08753591]
[1734256699368,2.58915,3862.3,3861.9,2.24395088]
[1734256699533,2.58917,3862.3,3862.0,0.89758035]
[1734256699877,2.58917,3862.3,3861.8,1.08753591]
[1734256700098,2.58917,3862.3,3861.9,2.24406106]
[1734256700244,2.58917,3862.3,3862.0,2.24397968]
[1734256700584,2.58917,3862.3,3861.8,1.08753591]
[1734256700780,2.5892,3862.2,3861.9,2.24399216]
[1734256700948,0.6694,3862.1,3862.0,0.89759686]
[1734256702078,0.6694,3862.1,3862.0,0.89761193]
[1734256702230,3.25866,3862.1,3862.0,0.89761193]
[1734256702772,2.58938,3862.0,3861.6,1.08753591]
[1734256702979,2.58938,3862.0,3861.7,2.24432152]
[1734256703279,2.58938,3862.0,3861.8,2.24433584]
[1734256703459,2.58938,3862.0,3861.6,1.08753591]
[1734256703656,2.58938,3862.0,3861.7,2.24422301]
[1734256703979,2.58938,3862.0,3861.8,0.8976892]
[1734256704178,2.58938,3862.0,3861.6,1.08753591]
[1734256704482,2.58938,3862.0,3861.7,2.24424623]
[1734256704680,2.58938,3862.0,3861.8,0.89769849]
[1734256704884,2.58938,3862.0,3861.6,1.08753591]
[1734256705092,2.58938,3862.0,3861.7,2.24414623]
[1734256705261,2.58938,3862.0,3861.8,0.89765849]
[1734256705457,2.58938,3862.0,3861.6,1.08753591]
[1734256705790,2.58938,3862.0,3861.7,2.24406485]
[1734256705951,2.58938,3862.0,3861.8,0.89762594]
[1734256706153,2.58938,3862.0,3861.6,1.08753591]
[1734256706352,2.5894,3861.9,3861.7,2.24405061]
[1734256706571,2.5894,3861.9,3861.8,0.89762024]
[1734256708397,2.5894,3861.9,3861.8,0.95329371]
[1734256708578,2.5894,3861.9,3861.8,0.05567347]
[1734256708785,2.58948,3861.8,3861.5,1.08753591]
[1734256709109,2.58948,3861.8,3861.6,2.24463766]
[1734256709410,2.58948,3861.8,3861.7,0.89785506]
[1734256710412,2.58948,3861.8,3861.5,1.08753591]
[1734256710597,2.58948,3861.8,3861.6,2.24440991]
[1734256710906,2.58948,3861.8,3861.7,0.89776915]
[1734256711822,2.58948,3861.8,3861.7,0.89772649]
[1734256714622,2.58948,3861.8,3861.5,0.89772649]
[1734256714926,2.58948,3861.8,3861.6,2.24415288]
[1734256715131,2.58948,3861.8,3861.7,0.89761372]
[1734256715426,2.58948,3861.8,3861.5,0.89761372]
[1734256715723,2.58948,3861.8,3861.6,2.24397505]
[1734256715874,2.58948,3861.8,3861.7,0.89761372]
[1734256716510,3.2587,3862.1,3861.7,0.89761372]
[1734256716768,2.58913,3862.3,3861.8,1.70601372]
[1734256716972,2.58913,3862.3,3861.8,0.8084]
[1734256717721,1.75357843,3862.5,3861.8,0.8084]
[1734256717972,1.2270912,3862.4,3861.8,0.8084]
[1734256718156,1.2270912,3862.4,3861.5,1.89593591]
[1734256718157,2.58921,3862.2,3861.5,1.89593591]
[1734256718321,2.58921,3862.2,3861.6,2.24334128]
[1734256718521,2.58921,3862.2,3861.7,0.89733651]
[1734256718837,2.58921,3862.2,3861.5,1.89593591]
[1734256719041,2.58921,3862.2,3861.6,2.24292943]
[1734256719251,2.58921,3862.2,3861.7,0.89717177]
[1734256719452,2.58921,3862.2,3861.5,1.89593591]
[1734256719781,2.58921,3862.2,3861.6,2.24271103]
[1734256719949,2.58921,3862.2,3861.7,0.89708441]
[1734256720152,2.58921,3862.2,3861.5,1.89593591]
[1734256720471,2.58921,3862.2,3861.6,2.24263885]